lending/lending_fUSD_20241228
["ID","MTS","AMOUNT","RATE_DAILY","PERIOD"]
[346955164,1735424936653,158.67,0.000154,31]
[346955165,1735424936711,158.67,0.000154,31]
[346955166,1735424936773,158.67,0.000154,31]
[346955167,1735424936836,158.67,0.000154,31]
[346955168,1735424936898,158.67,0.000154,31]
[346955169,1735424936960,158.67,0.000154,31]
[346955170,1735424937079,158.67,0.000154,31]
[346955171,1735424937137,158.67,0.000154,31]
[346955172,1735424937198,158.67,0.000154,31]
[346955173,1735424937255,158.67,0.000154,31]
[346955174,1735424937319,158.67,0.000154,31]
[346955175,1735424937374,158.67,0.000154,31]
[346955176,1735424937433,158.67,0.000154,31]
[346955177,1735424983835,500.0,0.00022999,120]
[346955178,1735424984100,322.42238839,0.00022999,120]
[346955179,1735424988995,500.0,0.00022999,120]
[346955180,1735424989256,463.8,0.00022999,120]
[346955181,1735424999971,500.0,0.00022999,120]
[346955182,1735425000249,500.0,0.00022999,120]
[346955183,1735425000514,536.51,0.00022999,120]
[346955192,1735425031770,-594.06,9.624e-05,2]
[346955193,1735425031780,-191.06,0.00010137,2]
[346955194,1735425031790,-245.06,0.00010137,2]
[346955195,1735425031799,-125.08994558,0.00011287,2]
[346955196,1735425031811,-288.69005442,0.00011287,2]
[346955197,1735425031820,-300.0,0.00011309,2]
[346955198,1735425031829,-7263.72660485,0.0001131,2]
[346955199,1735425031840,-1863.13950464,0.0001131,2]
[346955200,1735425031851,-4492.7795339,0.0001131,2]
[346955201,1735425031863,-10280.35435661,0.0001131,2]
[346955202,1735425031873,-222.0,0.00011322,2]
[346955203,1735425031882,-558.37,0.00011322,2]
[346955204,1735425031892,-1160.54,0.00011361,2]
[346955205,1735425031901,-3009.97825497,0.000114,2]
[346955206,1735425031910,-160.82,0.00011421,2]
[346955207,1735425031919,-160.82,0.00011478,2]
[346955208,1735425031928,-862.85,0.00011507,2]
[346955209,1735425031939,-250.0,0.00011541,2]
[346955210,1735425031948,-3082.21,0.00011582,2]
[346955211,1735425031957,-250.0,0.00011614,2]
[346955212,1735425031966,-165.55,0.0001172,2]
[346955213,1735425031975,-250.0,0.00011741,2]
[346955214,1735425031985,-853.72,0.00011763,2]
[346955215,1735425031995,-1000.0,0.00011775,2]
[346955216,1735425032004,-299.99,0.00011775,2]
[346955217,1735425032013,-191.74,0.00011801,2]
[346955218,1735425032023,-285.21,0.00011825,2]
[346955219,1735425032032,-594.06,0.00011888,2]
[346955220,1735425032041,-635.31,0.00011973,2]
[346955221,1735425032051,-25287.11673058,0.0001198,2]
[346955222,1735425032059,-450.0,0.00012,2]
[346955223,1735425032069,-500.0,0.00012001,2]
[346955224,1735425032078,-352.82,0.00012011,2]
[346955225,1735425032088,-182.2,0.00012078,2]
[346955226,1735425032097,-182.72,0.00012178,2]
[346955227,1735425032107,-182.72,0.00012178,2]
[346955228,1735425032116,-182.72,0.00012278,2]
[346955229,1735425032126,-182.72,0.00012278,2]
[346955230,1735425032135,-182.48,0.00012278,2]
[346955231,1735425032144,-374.95,0.00012333,2]
[346955232,1735425032153,-330.678,0.0001235,2]
[346955233,1735425032162,-182.72,0.00012378,2]
[346955234,1735425032171,-182.72,0.00012378,2]
[346955235,1735425032180,-182.72,0.00012378,2]
[346955236,1735425032190,-420.0,0.00012423,2]
[346955237,1735425032200,-400.0,0.00012423,2]
[346955238,1735425032209,-224.07654137,0.00012435,2]
[346955239,1735425032220,-200.0,0.00012437,2]
[346955240,1735425032229,-224.07654137,0.00012447,2]
[346955241,1735425032238,-224.07654137,0.00012465,2]
[346955242,1735425032248,-224.07654137,0.00012467,2]
[346955243,1735425032257,-224.07654137,0.00012469,2]
[346955244,1735425032266,-224.07654137,0.0001247,2]
[346955245,1735425032276,-3642.0,0.00012603,2]
[346955246,1735425032285,-166.75,0.00012609,2]
[346955247,1735425032294,-743.5123,0.000127,2]
[346955248,1735425032303,-1000.0,0.000127,2]
[346955249,1735425032313,-558.37,0.00012737,2]
[346955250,1735425032323,-392.4765979,0.00012739,2]
[346955251,1735425032332,-13632.91518108,0.00012805,2]
[346955252,1735425032341,-420.215,0.00012808,2]
[346955253,1735425032351,-3000.0,0.0001287,2]
[346955254,1735425032360,-60955.0464,0.0001289,2]
[346955256,1735425032369,-12105.039,0.000129,2]
[346955257,1735425032378,-153.35227035,0.000129,2]
[346955259,1735425032388,-1000.0,0.000129,2]
[346955261,1735425032397,-27621.59103242,0.000129,2]
[346955263,1735425032407,-1102.0,0.00012999,2]
[346955265,1735425032416,-1102.0,0.00012999,2]
[346955266,1735425032426,-1102.0,0.00012999,2]
[346955268,1735425032437,-1102.0,0.00012999,2]
[346955270,1735425032446,-1102.0,0.00012999,2]
[346955271,1735425032455,-1102.0,0.00012999,2]
[346955273,1735425032465,-1102.0,0.00012999,2]
[346955275,1735425032474,-1102.0,0.00012999,2]
[346955276,1735425032483,-1102.0,0.00012999,2]
[346955278,1735425032493,-952.97150066,0.00012999,2]
[346955280,1735425032505,-149.02849934,0.00012999,2]
[346955282,1735425032515,-1483.87235925,0.00013,2]
[346955284,1735425032524,-201.85036808,0.00013,2]
[346955286,1735425032536,-21537.87778146,0.00013,2]
[346955288,1735425032556,-761.54733521,0.00013,2]
[346955289,1735425032568,-841.40017069,0.00013,2]
[346955290,1735425032580,-732.22351548,0.00013,2]
[346955291,1735425032591,-988.3344858,0.00013,2]
[346955293,1735425032601,-1028.38140528,0.00013,2]
[346955295,1735425032616,-279.69657276,0.00013,2]
[346955297,1735425032627,-1075.43,0.00013,2]
[346955299,1735425032638,-3604.72047646,0.00013,2]
[346955319,1735425037649,-1802.36640994,0.00013,2]
[346955320,1735425037662,-4848.24778004,0.00013,2]
[346955321,1735425037723,-303.48307844,0.00013,2]
[346955322,1735425037798,-1454.3225435,0.00013,2]
[346955323,1735425037809,-1916.34,0.00013,2]
[346955324,1735425037820,-200299.3574429,0.00013,2]
[346955325,1735425037831,-3216.24945451,0.00013,2]
[346955490,1735425039681,-1199.79854666,0.00013,2]
[346955501,1735425039776,-665.31684,0.00013,2]
[346955504,1735425039787,-4238.48901378,0.00013,2]
[346955506,1735425039798,-577.46205938,0.00013,2]
[346955509,1735425039821,-8308.24554043,0.00013,2]
[346955511,1735425039830,-531.67027132,0.00013,2]
[346955521,1735425039918,-104.32972868,0.00013,2]
[346955523,1735425039928,-703.61542109,0.00013,2]
[346955526,1735425039939,-289.90052373,0.00013,2]
[346955816,1735425042713,-296.21242944,0.00013,2]
[346955820,1735425042724,-3713.11158809,0.00013,2]
[346955822,1735425042736,-3700.04995,0.00013,2]
[346955824,1735425042747,-296.13443335,0.00013,2]
[346955825,1735425042758,-6167.73791073,0.00013,2]
[346955826,1735425042792,-1436.2668,0.00013,2]
[346955827,1735425042803,-545.0599996,0.00013,2]
[346955832,1735425042860,-826.63609716,0.00013,2]
[346955834,1735425042871,-645.12,0.00013,2]
[346955842,1735425042941,-1427153.66368674,0.00013,2]
[346955845,1735425042954,-23331.90311531,0.00013,2]
[346955847,1735425042966,-18843.47352657,0.00013,2]
[346955849,1735425042977,-709.07707001,0.00013,2]
[346955852,1735425042992,-17187.71000002,0.00013,2]
[346956133,1735425045777,-49516.89251067,0.00013,2]
[346956135,1735425045788,-4704.5626526,0.00013,2]
[346956143,1735425045871,-682.62,0.00013,2]
[346956150,1735425045950,-343.1944615,0.00013,2]
[346956152,1735425045962,-18566.55176146,0.00013,2]
[346956160,1735425046038,-5773.08,0.00013,2]
[346956162,1735425046049,-1016.32085,0.00013,2]
[346956385,1735425111373,157.12536469,0.00022999,120]
[346956386,1735425123749,560.89,0.00022999,120]
[346956387,1735425135722,500.0,0.00022999,120]
[346956388,1735425141956,500.0,0.00022999,120]
[346956389,1735425144416,626.74057386,0.00022999,120]
[346956390,1735425148834,500.0,0.00022999,120]
[346956391,1735425159020,500.0,0.00022999,120]
[346956392,1735425160700,500.0,0.00022999,120]
[346956393,1735425161515,565.54,0.00022999,120]
[346956394,1735425165263,500.0,0.00022999,120]
[346956395,1735425167317,601.11,0.00022999,120]
[346956396,1735425173718,507.97,0.00022999,120]
[346956397,1735425173860,500.0,0.00022999,120]
[346956398,1735425176593,500.0,0.00022999,120]
[346956400,1735425192643,500.0,0.000221,120]
[346956401,1735425194836,2000.0,0.000221,120]
[346956402,1735425207949,489.94392211,0.00022999,120]
[346956403,1735425308703,500.0,0.00022999,120]
[346956404,1735425309706,485.46403787,0.00022999,120]
[346956405,1735425400746,2814.0,0.00023,120]
[346956406,1735425472111,305.24244407,0.00022999,120]
[346956407,1735425548764,153.21,0.000154,31]
[346956408,1735425548807,153.21,0.000154,31]
[346956409,1735425548875,153.21,0.000154,31]
[346956410,1735425548911,153.21,0.000154,31]
[346956411,1735425548981,153.21,0.000154,31]
[346956412,1735425549054,153.21,0.000154,31]
[346956413,1735425549090,153.21,0.000154,31]
[346956414,1735425549153,153.21,0.000154,31]
[346956415,1735425549197,153.21,0.000154,31]
[346956416,1735425549245,153.21,0.000154,31]
[346956417,1735425549312,153.21,0.000154,31]
[346956418,1735425549394,153.21,0.000154,31]
[346956419,1735425549441,153.21,0.000154,31]
[346956420,1735425549487,153.21,0.000154,31]
[346956421,1735425549562,153.21,0.000154,31]
[346956422,1735425549606,153.21,0.000154,31]
[346956423,1735425549666,153.21,0.000154,31]
[346956425,1735425639015,2647.0,0.00023,120]
[346956426,1735425665946,-1530.94900169,0.00012968,10]
[346956427,1735425867958,500.0,0.00022999,120]
[346956428,1735425868560,500.0,0.00022999,120]
[346956429,1735425869441,500.0,0.00022999,120]
[346956430,1735425869791,500.0,0.00022999,120]
[346956431,1735425870977,308.54350621,0.00022999,120]
[346956432,1735425882264,365.14512934,0.00022999,120]
[346956433,1735425883586,500.0,0.00022999,120]
[346956434,1735425884630,209.91848788,0.00022999,120]
[346956435,1735425886040,500.0,0.00022999,120]
[346956436,1735425886277,500.0,0.00022999,120]
[346956437,1735425886682,312.71,0.00022999,120]
[346956438,1735425897262,500.0,0.00022999,120]
[346956439,1735425897811,500.0,0.00022999,120]
[346956440,1735425898659,485.92528666,0.00022999,120]
[346956441,1735425909284,500.0,0.00022999,120]
[346956442,1735425912184,500.0,0.00022999,120]
[346956443,1735425913195,500.0,0.00022999,120]
[346956444,1735425913289,500.0,0.00022999,120]
[346956445,1735425914018,500.0,0.00022999,120]
[346956446,1735425914946,500.0,0.00022999,120]
[346956447,1735425915116,171.34628632,0.00022999,120]
[346956448,1735425917069,500.0,0.00022999,120]
[346956449,1735425918382,500.0,0.00022999,120]
[346956450,1735425919110,500.0,0.00022999,120]
[346956451,1735425919611,500.0,0.00022999,120]
[346956452,1735425920481,500.0,0.00022999,120]
[346956453,1735425921034,500.0,0.00022999,120]
[346956454,1735425921394,500.0,0.00022999,120]
[346956455,1735425921646,500.0,0.00022999,120]
[346956456,1735425923013,500.0,0.00022999,120]
[346956457,1735425923072,500.0,0.00022999,120]
[346956458,1735425923230,500.0,0.00022999,120]
[346956459,1735425923393,500.0,0.00022999,120]
[346956460,1735425923504,500.0,0.00022999,120]
[346956461,1735425923922,500.0,0.00022999,120]
[346956462,1735425924030,500.0,0.00022999,120]
[346956463,1735425924512,500.0,0.00022999,120]
[346956464,1735425924571,500.0,0.00022999,120]
[346956465,1735425924711,500.0,0.00022999,120]
[346956466,1735425925686,208.71,0.00022999,120]
[346956467,1735425925743,500.0,0.00022999,120]
[346956468,1735425927411,500.0,0.00022999,120]
[346956469,1735425927850,500.0,0.00022999,120]
[346956477,1735426014921,525.56,0.00022999,120]
[346956478,1735426015638,525.56,0.00022999,120]
[346956479,1735426015695,500.0,0.00022999,120]
[346956480,1735426016385,525.56,0.00022999,120]
[346956481,1735426017351,525.56,0.00022999,120]
[346956482,1735426018248,525.56,0.00022999,120]
[346956483,1735426018983,525.56,0.00022999,120]
[346956484,1735426021137,525.56,0.00022999,120]
[346956485,1735426022533,525.56,0.00022999,120]
[346956486,1735426024769,525.56,0.00022999,120]
[346956487,1735426026218,525.56,0.00022999,120]
[346956488,1735426027574,525.56,0.00022999,120]
[346956489,1735426028334,525.56,0.00022999,120]
[346956490,1735426030099,525.56,0.00022999,120]
[346956491,1735426032176,525.56,0.00022999,120]
[346956494,1735426034053,525.56,0.00022999,120]
[346956500,1735426037569,525.56,0.00022999,120]
[346956507,1735426039996,525.56,0.00022999,120]
[346956508,1735426041481,525.56,0.00022999,120]
[346956509,1735426044382,525.56,0.00022999,120]
[346956510,1735426046126,525.56,0.00022999,120]
[346956511,1735426047027,525.56,0.00022999,120]
[346956512,1735426047802,525.56,0.00022999,120]
[346956513,1735426049179,525.56,0.00022999,120]
[346956514,1735426050291,525.64555603,0.00022999,120]
[346956518,1735426076393,500.0,0.00022999,120]
[346956519,1735426077671,500.0,0.00022999,120]
[346956520,1735426079025,500.0,0.00022999,120]
[346956521,1735426079787,500.0,0.00022999,120]
[346956522,1735426080802,500.0,0.00022999,120]
[346956523,1735426081601,589.48,0.00022999,120]
[346956524,1735426103348,500.0,0.00022999,120]
[346956525,1735426103695,376.0,0.00022999,120]
[346956527,1735426158276,153.23,0.000154,31]
[346956528,1735426158340,153.23,0.000154,31]
[346956529,1735426158399,153.23,0.000154,31]
[346956530,1735426158679,153.23,0.000154,31]
[346956531,1735426158719,153.23,0.000154,31]
[346956532,1735426158761,153.23,0.000154,31]
[346956533,1735426158802,153.23,0.000154,31]
[346956534,1735426158841,153.23,0.000154,31]
[346956535,1735426158887,153.23,0.000154,31]
[346956536,1735426158930,153.23,0.000154,31]
[346956537,1735426158967,153.23,0.000154,31]
[346956538,1735426159007,153.23,0.000154,31]
[346956539,1735426159043,153.23,0.000154,31]
[346956540,1735426159079,153.23,0.000154,31]
[346956541,1735426174021,502.41821283,0.00022999,120]
[346956542,1735426176301,324.02684385,0.00022999,120]
[346956543,1735426216291,500.0,0.00022999,120]
[346956544,1735426217666,500.0,0.00022999,120]
[346956545,1735426219337,500.0,0.00022999,120]
[346956546,1735426219704,500.0,0.00022999,120]
[346956547,1735426220473,500.0,0.00022999,120]
[346956548,1735426220962,500.0,0.00022999,120]
[346956549,1735426221554,500.0,0.00022999,120]
[346956550,1735426222416,500.0,0.00022999,120]
[346956551,1735426223830,500.0,0.00022999,120]
[346956552,1735426224436,500.0,0.00022999,120]
[346956553,1735426225462,500.0,0.00022999,120]
[346956554,1735426225687,500.0,0.00022999,120]
[346956555,1735426225987,429.09582702,0.00022999,120]
[346956556,1735426226046,321.48,0.00022999,120]
[346956557,1735426229935,500.0,0.00022999,120]
[346956558,1735426230187,500.0,0.00022999,120]
[346956559,1735426230465,500.0,0.00022999,120]
[346956560,1735426230712,500.0,0.00022999,120]
[346956561,1735426231058,500.0,0.00022999,120]
[346956562,1735426232075,-618.5,9.876e-05,2]
[346956563,1735426232085,-312.49005874,0.00010037,2]
[346956564,1735426232103,-113.13899842,0.00010037,2]
[346956565,1735426232114,-163.48,0.00010137,2]
[346956566,1735426232124,-509.00231101,0.00011587,2]
[346956567,1735426232211,-507.0,0.00011587,2]
[346956568,1735426232223,-188.76768899,0.00011587,2]
[346956569,1735426232233,-317.27831101,0.00011624,2]
[346956570,1735426232244,-601.02,0.00011624,2]
[346956571,1735426232256,-536.091027,0.00011624,2]
[346956572,1735426232267,-145.92066199,0.00011624,2]
[346956573,1735426232277,-423.70433801,0.00011661,2]
[346956574,1735426232349,266.05,0.00022999,120]
[346956575,1735426232363,-413.47566199,0.00011661,2]
[346956576,1735426232372,-150.0,0.00011726,2]
[346956577,1735426232383,-500.0,0.0001173,2]
[346956578,1735426232392,-300.0,0.00011751,2]
[346956579,1735426232401,-8223.54467612,0.00011752,2]
[346956580,1735426232423,-5483.58920946,0.00011752,2]
[346956581,1735426232435,-287.21579056,0.00011752,2]
[346956591,1735426234490,500.0,0.00022999,120]
[346956592,1735426234858,477.3,0.00022999,120]
[346956593,1735426236897,500.0,0.00022999,120]
[346956594,1735426237137,500.0,0.00022999,120]
[346956595,1735426237567,263.91071334,0.00022999,120]
[346956602,1735426237986,-500.0,0.00011752,2]
[346956603,1735426238081,-1261.40056302,0.00011752,2]
[346956651,1735426239566,224.12428113,0.00022999,120]
[346956653,1735426240047,-1864.64976084,0.00011752,2]
[346956654,1735426240056,-250.0,0.0001183,2]
[346956655,1735426240067,-165.54,0.00011959,2]
[346956656,1735426240077,-150.0,0.00011993,2]
[346956657,1735426240086,-250.0,0.00012025,2]
[346956658,1735426240096,-250.0,0.00012055,2]
[346956659,1735426240105,-1000.0,0.00012118,2]
[346956660,1735426240115,-618.5,0.0001214,2]
[346956661,1735426240124,-343.973,0.0001235,2]
[346956662,1735426240133,-379.07,0.00012433,2]
[346956663,1735426240143,-300.0,0.000125,2]
[346956664,1735426240153,-370.11,0.0001251,2]
[346956665,1735426240162,-1328.0,0.000126,2]
[346956666,1735426240173,-311.1777,0.000127,2]
[346956667,1735426240182,-265.2432,0.000127,2]
[346956668,1735426240191,-3112.0316,0.000127,2]
[346956669,1735426240201,-4171.0304,0.000127,2]
[346956670,1735426240211,-5839.4506,0.000127,2]
[346956671,1735426240220,-1000.0,0.000127,2]
[346956672,1735426240230,-5884.5998287,0.000127,2]
[346956673,1735426240240,-190.91180495,0.00012705,2]
[346956674,1735426240249,-5884.59982864,0.00012722,2]
[346956675,1735426240259,-285.4375258,0.00012739,2]
[346956676,1735426240268,-960.41332441,0.00012744,2]
[346956677,1735426240277,-5884.59982864,0.00012744,2]
[346956678,1735426240292,-960.41332441,0.00012767,2]
[346956679,1735426240302,-5884.59982864,0.00012767,2]
[346956680,1735426240311,-153.35227035,0.0001277,2]
[346956681,1735426240321,-960.41332441,0.00012789,2]
[346956682,1735426240330,-5884.59982864,0.00012789,2]
[346956683,1735426240339,-500.0,0.00012799,2]
[346956684,1735426240349,-500.0,0.00012799,2]
[346956685,1735426240359,-525.99510898,0.00012799,2]
[346956687,1735426240368,-500.0,0.00012799,2]
[346956689,1735426240377,-500.0,0.00012799,2]
[346956691,1735426240387,-156.1234115,0.00012799,2]
[346956692,1735426240396,-500.0,0.00012799,2]
[346956694,1735426240406,-288.84790612,0.00012799,2]
[346956697,1735426240415,-500.0,0.00012799,2]
[346956699,1735426240424,-500.0,0.00012799,2]
[346956700,1735426240434,-500.0,0.00012799,2]
[346956702,1735426240443,-500.0,0.00012799,2]
[346956704,1735426240452,-500.0,0.00012799,2]
[346956706,1735426240462,-500.0,0.00012799,2]
[346956708,1735426240472,-500.0,0.00012799,2]
[346956711,1735426240482,-500.0,0.00012799,2]
[346956712,1735426240491,-485.54431089,0.00012799,2]
[346956714,1735426240501,-500.0,0.00012799,2]
[346956716,1735426240510,-500.0,0.00012799,2]
[346956718,1735426240519,-500.0,0.00012799,2]
[346956720,1735426240528,-500.0,0.00012799,2]
[346956722,1735426240537,-500.0,0.00012799,2]
[346956724,1735426240546,-500.0,0.00012799,2]
[346956726,1735426240556,-500.0,0.00012799,2]
[346956728,1735426240565,-500.0,0.00012799,2]
[346956730,1735426240574,-500.0,0.00012799,2]
[346956732,1735426240584,-179.602,0.00012799,2]
[346956734,1735426240594,-1107.531,0.00012799,2]
[346956736,1735426240604,-917.08448308,0.000128,2]
[346956738,1735426240613,-7987.01420823,0.000128,2]
[346956740,1735426240625,-121791.30887894,0.000128,2]
[346956743,1735426240636,-59236.4999796,0.000128,2]
[346956745,1735426240648,-95623.0,0.000128,2]
[346956747,1735426240659,-333.58518724,0.000128,2]
[346956750,1735426240674,-216737.52861187,0.000128,2]
[346956752,1735426240685,-24208.73803192,0.000128,2]
[346956754,1735426240696,-861.64145334,0.000128,2]
[346956756,1735426240707,-296740.5569165,0.000128,2]
[346956758,1735426240717,-1500.0,0.000128,2]
[346956760,1735426240726,-1000.0,0.000128,2]
[346956762,1735426240735,-4016044.0,0.000128,2]
[346956764,1735426240745,-960.41332441,0.00012811,2]
[346956766,1735426240754,-5884.59982864,0.00012811,2]
[346956768,1735426240764,-960.41332441,0.00012833,2]
[346956770,1735426240773,-5884.59982864,0.00012833,2]
[346956772,1735426240782,-960.41332441,0.00012856,2]
[346956774,1735426240791,-5884.59982864,0.00012856,2]
[346956776,1735426240801,-200.0,0.00012867,2]
[346956778,1735426240810,-3000.0,0.0001287,2]
[346956780,1735426240819,-960.41332441,0.00012878,2]
[346956782,1735426240829,-5884.59982864,0.00012878,2]
[346956783,1735426240838,-1368.05531084,0.000129,2]
[346956784,1735426240848,-960.41332441,0.000129,2]
[346956785,1735426240857,-5884.59982864,0.000129,2]
[346956786,1735426240866,-420.0,0.00012903,2]
[346956787,1735426240876,-2845.885929,0.00012958,2]
[346956788,1735426240885,-1717.299668,0.00012996,2]
[346956789,1735426240895,-989.4447,0.00012999,2]
[346956790,1735426240904,-450833.62138455,0.00013,2]
[346956791,1735426240920,-1696.15000002,0.00013,2]
[346956792,1735426240931,-877.5299894,0.00013,2]
[346956793,1735426240952,-1100.817,0.00013,2]
[346956794,1735426240965,-814.6,0.00013,2]
[346956813,1735426242964,-472.49999847,0.00013,2]
[346956815,1735426242976,-562.39668,0.00013,2]
[346956816,1735426242988,-419.81087525,0.00013,2]
[346956817,1735426243090,-744.5,0.00013,2]
[346956818,1735426243114,-69927.55798956,0.00013,2]
[346956819,1735426243211,-487.98,0.00013,2]
[346956820,1735426243223,-505.79,0.00013,2]
[346956821,1735426243234,-7509.99559041,0.00013,2]
[346956832,1735426245951,-609.29767061,0.00013,2]
[346956833,1735426245963,-2060.70275563,0.00013,2]
[346956834,1735426245975,-4192.258968,0.00013,2]
[346956835,1735426245987,-9958.5,0.00013,2]
[346956836,1735426246002,-5804.15155352,0.00013,2]
[346956837,1735426246074,-401.96291768,0.00013,2]
[346956838,1735426246329,-40124.81351,0.00013,2]
[346956839,1735426246341,-8419.5435418,0.00013,2]
[346956840,1735426246352,-1264.76750391,0.00013,2]
[346956841,1735426246363,-2122.4739642,0.00013,2]
[346956842,1735426246378,-7333.18851848,0.00013,2]
[346956843,1735426246389,-43629.44430406,0.00013,2]
[346956847,1735426246755,500.0,0.00022999,120]
[346956848,1735426248793,541.23,0.00022999,120]
[346956849,1735426252263,500.0,0.00022999,120]
[346956850,1735426253277,631.91,0.00022999,120]
[346956851,1735426255267,500.0,0.00022999,120]
[346956852,1735426255531,523.47,0.00022999,120]
[346956853,1735426256902,551.56,0.00022999,120]
[346956854,1735426257673,500.0,0.00022999,120]
[346956855,1735426257956,500.0,0.00022999,120]
[346956856,1735426258206,221.25,0.00022999,120]
[346956857,1735426260631,500.0,0.00022999,120]
[346956858,1735426260734,500.0,0.00022999,120]
[346956859,1735426260984,530.26,0.00022999,120]
[346956860,1735426268219,500.0,0.00022999,120]
[346956861,1735426268488,500.0,0.00022999,120]
[346956862,1735426274682,232.96968422,0.00022999,120]
[346956863,1735426292320,500.0,0.00022999,120]
[346956864,1735426293053,500.0,0.00022999,120]
[346956865,1735426293635,236.18,0.00022999,120]
[346956866,1735426317640,300.397181,0.000155,24]
[346956867,1735426322222,248.197542,0.000155,24]
[346956868,1735426328839,500.0,0.00022999,120]
[346956869,1735426330179,500.0,0.00022999,120]
[346956870,1735426330973,500.0,0.00022999,120]
[346956871,1735426332023,491.18,0.00022999,120]
[346956872,1735426334320,258.04010272,0.00022999,120]
[346956873,1735426335522,500.0,0.00022999,120]
[346956874,1735426335898,502.02388549,0.00022999,120]
[346956875,1735426336622,189.31494932,0.00022999,120]
[346956876,1735426337530,500.0,0.00022999,120]
[346956877,1735426341374,308.95249896,0.00022999,120]
[346956878,1735426343267,500.0,0.00022999,120]
[346956879,1735426343384,500.0,0.00022999,120]
[346956880,1735426343631,500.0,0.00022999,120]
[346956881,1735426344467,500.0,0.00022999,120]
[346956882,1735426345089,500.0,0.00022999,120]
[346956883,1735426345724,500.0,0.00022999,120]
[346956884,1735426346184,500.0,0.00022999,120]
[346956885,1735426346459,500.0,0.00022999,120]
[346956886,1735426346511,500.0,0.00022999,120]
[346956887,1735426346766,500.0,0.00022999,120]
[346956888,1735426346827,500.0,0.00022999,120]
[346956889,1735426346968,500.0,0.00022999,120]
[346956890,1735426347352,500.0,0.00022999,120]
[346956891,1735426347631,500.0,0.00022999,120]
[346956892,1735426347888,500.0,0.00022999,120]
[346956893,1735426348159,500.0,0.00022999,120]
[346956894,1735426348423,500.0,0.00022999,120]
[346956895,1735426348704,500.0,0.00022999,120]
[346956896,1735426348862,500.0,0.00022999,120]
[346956897,1735426349122,416.45,0.00022999,120]
[346956898,1735426349175,500.0,0.00022999,120]
[346956899,1735426349234,237.1,0.00022999,120]
[346956900,1735426349414,500.0,0.00022999,120]
[346956901,1735426349666,207.39,0.00022999,120]
[346956902,1735426354908,633.52836361,0.00022999,120]
[346956903,1735426357373,500.0,0.00022999,120]
[346956904,1735426357685,507.8,0.00022999,120]
[346956905,1735426362015,500.0,0.00022999,120]
[346956906,1735426362305,500.0,0.00022999,120]
[346956907,1735426362548,500.0,0.00022999,120]
[346956908,1735426362791,500.0,0.00022999,120]